lending/lending_fUSD_20250122
["ID","MTS","AMOUNT","RATE_DAILY","PERIOD"]
[349925911,1737509432500,-279.39013014,0.00020473,2]
[349925912,1737509432516,-720.60986986,0.00020473,2]
[349925913,1737509432525,-29.76490058,0.00020501,2]
[349925914,1737509432536,-137.31509942,0.00020501,2]
[349925915,1737509432545,-250.0,0.00020575,2]
[349925916,1737509432555,-250.0,0.00020576,2]
[349925917,1737509432564,-186.29,0.0002061,2]
[349925918,1737509432574,-388.06,0.00020707,2]
[349925919,1737509432583,-163.02,0.00020752,30]
[349925920,1737509432592,-160.109,0.0002078,2]
[349925921,1737509432602,-0.84864278,0.000208,2]
[349925922,1737509432614,-1957.61372942,0.000208,2]
[349925923,1737509432623,-1958.4623722,0.00020814,2]
[349925924,1737509432633,-200.0,0.00020816,2]
[349925925,1737509432642,-585.28881167,0.00020816,2]
[349925926,1737509432651,-585.28881167,0.00020824,2]
[349925927,1737509432661,-96.66646048,0.0002084,2]
[349925928,1737509432676,-153.33353952,0.0002084,2]
[349925929,1737509432685,-200.0,0.00020846,2]
[349925930,1737509432694,-260.18,0.00020849,2]
[349925931,1737509432704,-200.0,0.00020861,2]
[349925932,1737509432714,-1958.4623722,0.00020868,2]
[349925933,1737509432724,-585.28881167,0.00020869,2]
[349925934,1737509432733,-529.81,0.00020881,2]
[349925935,1737509432743,-200.0,0.00020884,2]
[349925936,1737509432752,-585.28881167,0.0002089,2]
[349925937,1737509432762,-200.0,0.00020891,2]
[349925938,1737509432771,-1836.65074682,0.00020892,2]
[349925939,1737509432783,-3259.93952186,0.00020892,2]
[349925940,1737509432793,-1643.91621459,0.00020892,2]
[349925941,1737509432805,-1132.87600634,0.00020892,2]
[349925942,1737509432828,-3436.97751039,0.00020892,2]
[349925943,1737509432838,-585.28881167,0.00020892,2]
[349925944,1737509432849,-200.0,0.00020904,2]
[349925945,1737509432858,-1958.4623722,0.0002094,2]
[349925946,1737509432867,-773.11,0.00020941,2]
[349925947,1737509432877,-438.48,0.00020941,2]
[349925948,1737509432887,-437.73,0.00020941,2]
[349925949,1737509432896,-770.48,0.00020941,2]
[349925950,1737509432906,-772.83,0.00020941,2]
[349925951,1737509432915,-1958.4623722,0.00020947,2]
[349925952,1737509432924,-1274.78124071,0.00021,2]
[349925953,1737509432934,-773.11,0.00021041,2]
[349925954,1737509432943,-438.48,0.00021041,2]
[349925955,1737509432952,-728.36,0.00021119,2]
[349925956,1737509432962,-500.0,0.00021178,2]
[349925957,1737509432971,-298.01,0.00021178,2]
[349925958,1737509432981,-1963.58,0.00021178,2]
[349925959,1737509432990,-150.0,0.00021178,2]
[349925960,1737509432999,-150.0,0.00021178,2]
[349925961,1737509433008,-298.01,0.00021178,2]
[349925962,1737509433018,-298.01,0.00021178,2]
[349925963,1737509433028,-298.01,0.00021178,2]
[349925964,1737509433038,-298.01,0.00021178,2]
[349925965,1737509433047,-298.01,0.00021178,2]
[349925966,1737509433056,-298.01,0.00021178,2]
[349925967,1737509433066,-298.01,0.00021178,2]
[349925968,1737509433076,-301.76,0.00021178,2]
[349925969,1737509433085,-188.95,0.00021285,2]
[349925970,1737509433095,-500.0,0.00021356,2]
[349925971,1737509433105,-838.462,0.00021408,2]
[349925972,1737509433114,-430.3178249,0.00021414,2]
[349925973,1737509433125,-500.0,0.00021479,2]
[349925974,1737509433134,-1864.0,0.00021511,2]
[349925975,1737509433143,-1261.0,0.00021511,2]
[349925976,1737509433152,-907.0,0.00021511,2]
[349925977,1737509433164,-2948.0,0.00021511,2]
[349925978,1737509433174,-781.0,0.00021511,2]
[349925979,1737509433183,-150.0,0.00021511,2]
[349925980,1737509433193,-3984.0,0.00021511,2]
[349925981,1737509433203,-537.0,0.00021511,2]
[349925982,1737509433213,-2926.965,0.00021511,2]
[349925983,1737509433223,-2019.0,0.00021511,2]
[349925984,1737509433233,-1270.0,0.00021511,2]
[349925985,1737509433243,-3000.0,0.0002165,2]
[349925986,1737509433253,-500.0,0.00021695,2]
[349925987,1737509433263,-4454.6732,0.00021738,2]
[349925988,1737509433273,-388.06,0.00021742,2]
[349925989,1737509433283,-173.73264784,0.00021758,2]
[349925990,1737509433292,-422.24887493,0.00021758,2]
[349925991,1737509433302,-2000.0,0.00021761,2]
[349925992,1737509433311,-1740.58204922,0.00021763,2]
[349925993,1737509433323,-422.24887484,0.00021774,2]
[349925994,1737509433333,-422.24887484,0.0002179,2]
[349925995,1737509433342,-518.32410148,0.000218,2]
[349925996,1737509433352,-422.24887484,0.00021805,2]
[349925997,1737509433361,-422.24887484,0.00021821,2]
[349925998,1737509433372,-422.24887484,0.00021837,2]
[349925999,1737509433384,-422.24887484,0.00021853,2]
[349926000,1737509433394,-428859.87737242,0.00021854,4]
[349926001,1737509433410,-1956.94,0.00021854,4]
[349926034,1737509438786,-150.948,0.00021511,2]
[349926035,1737509438796,-226.285409,0.000218,2]
[349926036,1737509438805,-21212.34876272,0.00021854,4]
[349926037,1737509438837,-223213.0864783,0.00021854,4]
[349926038,1737509438865,-100073.84028657,0.00021854,4]
[349926166,1737509440427,-711.18564078,0.00021854,4]
[349926169,1737509440440,-3606.04086476,0.00021854,4]
[349926185,1737509440618,-2315.9462,0.00021854,4]
[349926186,1737509440629,-1211.27566725,0.00021854,4]
[349926187,1737509440640,-1270.15857547,0.00021854,4]
[349926188,1737509440688,-264.56326771,0.00021854,4]
[349926189,1737509440699,-257.85199545,0.00021854,4]
[349926190,1737509440710,-4763.378572,0.00021854,4]
[349926191,1737509440751,-7539.26286596,0.00021854,4]
[349926197,1737509444000,-508.1638605,0.00019164,2]
[349926199,1737509444010,-278.86435745,0.00019164,2]
[349926200,1737509444022,-221.13564255,0.00019164,2]
[349926201,1737509444031,-298.01,0.00021178,2]
[349926202,1737509444041,-2899.19664146,0.00021854,4]
[349926225,1737509446464,-512.05964244,0.00021356,2]
[349926226,1737509446674,-9.40827622,0.00021356,2]
[349926227,1737509446685,-4895.79987028,0.00021854,4]
[349926256,1737509656067,10000.0,0.00024,120]
[349926257,1737509825922,152.56,0.00010137,2]
[349926261,1737510007782,211.1799988,0.00024,120]
[349926264,1737510572085,-171.6,0.00012329,2]
[349926281,1737510633468,-550.0,0.00015,2]
[349926282,1737510633480,-50.42625278,0.00017,2]
[349926283,1737510633550,-549.57374722,0.00017,2]
[349926284,1737510633561,-197.77624278,0.00018387,2]
[349926285,1737510633575,-507.60375722,0.00018387,2]
[349926286,1737510633587,-650.0,0.00019,2]
[349926287,1737510633598,-500.0,0.00019164,2]
[349926288,1737510633610,-500.0,0.00019164,2]
[349926289,1737510633622,-152.56,0.00019198,2]
[349926290,1737510633633,-250.0,0.00019853,2]
[349926291,1737510633645,-200.0,0.00019863,2]
[349926293,1737510633656,-150.39,0.00020123,2]
[349926295,1737510633667,-150.39,0.00020135,2]
[349926298,1737510633679,-150.39,0.00020146,2]
[349926300,1737510633690,-150.39,0.00020157,2]
[349926302,1737510633700,-150.39,0.00020168,2]
[349926303,1737510633712,-150.39,0.00020179,2]
[349926304,1737510633722,-37.49624278,0.00020191,2]
[349926306,1737510633737,-112.89375722,0.00020191,2]
[349926308,1737510633747,-150.39,0.00020202,2]
[349926311,1737510633759,-150.39,0.00020213,2]
[349926313,1737510633772,-150.39,0.00020224,2]
[349926314,1737510633783,-1543.56992705,0.00020233,2]
[349926315,1737510633798,-147.48007295,0.00020233,2]
[349926316,1737510633811,-570.07,0.00020249,2]
[349926317,1737510633823,-200.0,0.00020272,2]
[349926318,1737510633836,-927.12,0.00020307,2]
[349926319,1737510633848,-300.0,0.00020314,2]
[349926320,1737510633861,-1000.0,0.00020315,2]
[349926321,1737510633872,-490.39,0.00020332,2]
[349926322,1737510633883,-185.75,0.00020359,2]
[349926323,1737510633895,-169.98,0.00020409,2]
[349926324,1737510633906,-250.0,0.00020436,2]
[349926325,1737510633918,-927.22150545,0.00020441,2]
[349926326,1737510633929,-250.0,0.00020459,2]
[349926327,1737510633940,-3003.53,0.00020546,2]
[349926328,1737510633951,-163.02,0.00020562,30]
[349926329,1737510633964,-687.5,0.00020578,2]
[349926330,1737510633975,-322.63,0.00020646,2]
[349926331,1737510633987,-705.38,0.00020651,2]
[349926332,1737510633998,-298.01,0.00020678,2]
[349926333,1737510634010,-160.591,0.0002078,2]
[349926334,1737510634021,-231.47647472,0.00020784,2]
[349926335,1737510634033,-231.47647472,0.00020787,2]
[349926336,1737510634045,-231.47647472,0.00020837,2]
[349926337,1737510634056,-231.47647472,0.00020858,2]
[349926338,1737510634068,-231.47647472,0.0002086,2]
[349926339,1737510634080,-347.21471209,0.00020864,2]
[349926340,1737510634092,-200.0,0.00020876,2]
[349926341,1737510634104,-298.01,0.00020878,2]
[349926342,1737510634115,-289.0,0.0002088,2]
[349926343,1737510634131,-347.21471209,0.00020886,2]
[349926344,1737510634144,-200.0,0.0002089,2]
[349926345,1737510634157,-347.21471209,0.00020904,2]
[349926346,1737510634170,-347.21471209,0.00020906,2]
[349926347,1737510634182,-347.21471209,0.00020907,2]
[349926348,1737510634194,-200.0,0.00020921,2]
[349926349,1737510634206,-6853.0,0.00020993,2]
[349926350,1737510634218,-596.02,0.00021078,2]
[349926351,1737510634230,-298.01,0.00021078,2]
[349926352,1737510634243,-298.01,0.00021078,2]
[349926353,1737510634255,-205.0,0.0002109,2]
[349926354,1737510634268,-208.0,0.0002109,2]
[349926355,1737510634280,-85197.5913,0.00021105,2]
[349926356,1737510634292,-500.0,0.00021178,2]
[349926357,1737510634304,-927.12,0.00021323,2]
[349926358,1737510634316,-500.0,0.00021356,2]
[349926359,1737510634327,-31566.1502,0.00021372,2]
[349926360,1737510634341,-205.0,0.0002139,2]
[349926361,1737510634352,-208.0,0.0002139,2]
[349926362,1737510634363,-205.0,0.0002139,2]
[349926363,1737510634375,-208.0,0.0002139,2]
[349926364,1737510634386,-500.0,0.00021411,7]
[349926365,1737510634397,-500.0,0.00021411,7]
[349926366,1737510634410,-500.0,0.00021411,7]
[349926367,1737510634421,-998.58798783,0.00021447,2]
[349926368,1737510634433,-172.78671412,0.00021447,2]
[349926369,1737510634444,-923.178,0.00021471,2]
[349926370,1737510634455,-431.64684294,0.00021472,2]
[349926371,1737510634467,-100000.0,0.000215,3]
[349926372,1737510634478,-2019.0,0.00021547,2]
[349926373,1737510634490,-1270.0,0.00021547,2]
[349926374,1737510634502,-567.0,0.00021547,2]
[349926375,1737510634514,-636.0,0.00021547,2]
[349926376,1737510634525,-1864.0,0.00021547,2]
[349926377,1737510634537,-908.0,0.00021547,2]
[349926378,1737510634549,-2952.979,0.00021547,2]
[349926379,1737510634560,-1261.0,0.00021547,2]
[349926380,1737510634572,-781.0,0.00021547,2]
[349926381,1737510634583,-150.612,0.00021547,2]
[349926382,1737510634595,-3984.0,0.00021547,2]
[349926383,1737510634607,-538.0,0.00021547,2]
[349926384,1737510634619,-150.0,0.00021547,2]
[349926385,1737510634630,-756.20437435,0.00021572,2]
[349926386,1737510634641,-3000.0,0.0002163,2]
[349926387,1737510634653,-1000.0,0.00021644,3]
[349926388,1737510634664,-1000.0,0.00021644,3]
[349926389,1737510634676,-1000.0,0.00021644,3]
[349926390,1737510634686,-1000.0,0.00021644,3]
[349926391,1737510634697,-1000.0,0.00021644,3]
[349926392,1737510634711,-1000.0,0.00021644,3]
[349926393,1737510634722,-1000.0,0.00021644,3]
[349926394,1737510634732,-1000.0,0.00021644,3]
[349926395,1737510634743,-1000.0,0.00021644,3]
[349926396,1737510634754,-1000.0,0.00021644,3]
[349926397,1737510634765,-1000.0,0.00021644,3]
[349926398,1737510634778,-1000.0,0.00021644,3]
[349926399,1737510634789,-1000.0,0.00021644,3]
[349926400,1737510634798,-1000.0,0.00021644,3]
[349926401,1737510634808,-1000.0,0.00021644,3]
[349926402,1737510634819,-1000.0,0.00021644,3]
[349926403,1737510634829,-1000.0,0.00021644,3]
[349926404,1737510634841,-1000.0,0.00021644,3]
[349926405,1737510634852,-1000.0,0.00021644,3]
[349926406,1737510634862,-1057.0,0.00021644,3]
[349926407,1737510634872,-500.0,0.00021685,7]
[349926408,1737510634882,-500.0,0.00021685,7]
[349926409,1737510634891,-205.0,0.000217,2]
[349926410,1737510634901,-208.0,0.000217,2]
[349926411,1737510634911,-205.0,0.000217,2]
[349926412,1737510634920,-208.0,0.000217,2]
[349926413,1737510634930,-666.16,0.00021742,2]
[349926414,1737510634940,-666.16,0.00021742,2]
[349926415,1737510634950,-229.18013721,0.0002175,2]
[349926416,1737510635234,-1000.0,0.00021751,2]
[349926417,1737510635251,-419.5023,0.00021751,2]
[349926418,1737510635262,-500.0,0.00021751,2]
[349926419,1737510635272,-2471.11,0.00021751,2]
[349926420,1737510635281,-1403.68,0.00021751,2]
[349926421,1737510635291,-989.4,0.00021751,2]
[349926422,1737510635300,-500.0,0.00021751,2]
[349926423,1737510635310,-780.38,0.00021751,2]
[349926424,1737510635320,-1799.94,0.00021751,2]
[349926425,1737510635330,-500.0,0.00021751,2]
[349926426,1737510635341,-500.0,0.00021751,2]
[349926427,1737510635350,-500.0,0.00021751,2]
[349926428,1737510635362,-626.67,0.00021751,2]
[349926429,1737510635371,-503.04386941,0.00021751,2]
[349926430,1737510635381,-19850.525,0.00021752,2]
[349926431,1737510635390,-1000.0,0.00021752,2]
[349926432,1737510635399,-5000.0,0.00021752,2]
[349926433,1737510635409,-94128.40753104,0.00021752,2]
[349926434,1737510635419,-4664.7082,0.00021756,2]
[349926435,1737510635428,-252.1411,0.00021756,2]
[349926436,1737510635438,-157.8381,0.00021757,2]
[349926437,1737510635447,-553.04910853,0.000218,2]
[349926438,1737510635456,-666.16,0.0002184,2]
[349926439,1737510635465,-666.16,0.00021841,2]
[349926440,1737510635475,-666.16,0.00021841,2]
[349926441,1737510635485,-291.61,0.00021846,2]
[349926442,1737510635495,-291.61,0.00021846,2]
[349926443,1737510635504,-291.61,0.00021846,2]
[349926444,1737510635514,-291.61,0.00021846,2]
[349926445,1737510635524,-291.61,0.00021846,2]
[349926446,1737510635534,-291.61,0.00021846,2]
[349926447,1737510635544,-291.61,0.00021846,2]
[349926448,1737510635553,-291.61,0.00021846,2]
[349926449,1737510635563,-291.61,0.00021846,2]
[349926450,1737510635573,-291.61,0.00021846,2]
[349926451,1737510635583,-291.61,0.00021846,2]
[349926452,1737510635593,-291.61,0.00021846,2]
[349926453,1737510635603,-510.63592976,0.0002185,2]
[349926454,1737510635613,-500.0,0.0002185,2]
[349926455,1737510635623,-500.0,0.0002185,2]
[349926456,1737510635633,-510.87216605,0.0002185,2]
[349926457,1737510635643,-513.90587217,0.0002185,2]
[349926458,1737510635652,-500.0,0.0002185,2]
[349926459,1737510635662,-500.0,0.0002185,2]
[349926460,1737510635672,-500.0,0.0002185,2]
[349926461,1737510635682,-528.77128205,0.0002185,2]
[349926462,1737510635692,-500.0,0.0002185,2]
[349926463,1737510635702,-513.24889378,0.0002185,2]
[349926464,1737510635711,-500.0,0.0002185,2]
[349926465,1737510635721,-500.0,0.0002185,2]
[349926466,1737510635730,-1167.75,0.0002185,2]
[349926467,1737510635740,-558.21,0.0002185,2]
[349926468,1737510635750,-500.0,0.0002185,2]
[349926469,1737510635759,-1121.110964,0.0002185,2]
[349926470,1737510635770,-542.38671681,0.0002185,2]
[349926471,1737510635780,-500.0,0.0002185,2]
[349926472,1737510635790,-500.0,0.0002185,2]
[349926473,1737510635799,-546.02,0.0002185,2]
[349926474,1737510635809,-1102.67,0.0002185,2]
[349926475,1737510635819,-500.0,0.0002185,2]
[349926476,1737510635828,-1615.63,0.0002185,2]
[349926477,1737510635839,-565.531305,0.0002185,2]
[349926478,1737510635850,-508.67713824,0.0002185,2]
[349926479,1737510635860,-500.0,0.0002185,2]
[349926480,1737510635869,-818.19,0.0002185,2]
[349926481,1737510635879,-161.363484,0.0002185,2]
[349926482,1737510635888,-500.0,0.0002185,2]
[349926483,1737510635899,-500.0,0.0002185,2]
[349926484,1737510635908,-159.051358,0.0002185,2]
[349926485,1737510635917,-602.19,0.0002185,2]
[349926486,1737510635927,-500.0,0.0002185,2]
[349926487,1737510635938,-500.0,0.0002185,2]
[349926488,1737510635947,-2296.48,0.0002185,2]
[349926489,1737510635957,-500.03,0.0002185,2]
[349926490,1737510635967,-500.0,0.0002185,2]
[349926491,1737510635976,-500.0,0.0002185,2]
[349926492,1737510635985,-912.68,0.0002185,2]
[349926493,1737510635994,-500.0,0.0002185,2]
[349926494,1737510636003,-500.0,0.0002185,2]
[349926495,1737510636014,-500.0,0.0002185,2]
[349926496,1737510636023,-568.02,0.0002185,2]
[349926497,1737510636033,-500.0,0.0002185,2]
[349926498,1737510636042,-739.11,0.0002185,2]
[349926499,1737510636051,-500.0,0.0002185,2]
[349926500,1737510636060,-500.0,0.0002185,2]
[349926501,1737510636069,-500.0,0.0002185,2]
[349926502,1737510636079,-500.0,0.0002185,2]
[349926503,1737510636088,-500.0,0.0002185,2]
[349926504,1737510636098,-151.695553,0.0002185,2]
[349926505,1737510636107,-518.09036288,0.0002185,2]
[349926506,1737510636116,-1195.74,0.0002185,2]
[349926507,1737510636126,-971.32,0.0002185,2]
[349926508,1737510636135,-500.0,0.0002185,2]
[349926509,1737510636144,-608.01,0.0002185,2]
[349926510,1737510636153,-500.0,0.0002185,2]
[349926511,1737510636163,-1047.15,0.0002185,2]
[349926512,1737510636173,-1317.54,0.0002185,2]
[349926513,1737510636182,-500.0,0.0002185,2]
[349926514,1737510636192,-433.94457176,0.0002185,2]
[349926515,1737510636202,-500.0,0.0002185,2]
[349926516,1737510636211,-2643.2,0.0002185,2]
[349926517,1737510636220,-1145.13,0.0002185,2]
[349926518,1737510636230,-165.474421,0.0002185,2]
[349926519,1737510636239,-514.30615389,0.0002185,2]
[349926520,1737510636248,-500.0,0.0002185,2]
[349926521,1737510636258,-510.48021095,0.0002185,2]
[349926522,1737510636267,-613.28412964,0.0002185,2]
[349926523,1737510636276,-651.53,0.0002185,2]
[349926524,1737510636286,-2757.68,0.0002185,2]
[349926525,1737510636297,-1411.98,0.0002185,2]
[349926526,1737510636306,-510.85146519,0.0002185,2]
[349926527,1737510636315,-632.2,0.0002185,2]
[349926528,1737510636325,-500.0,0.0002185,2]
[349926529,1737510636335,-500.0,0.0002185,2]
[349926530,1737510636344,-515.06437669,0.0002185,2]
[349926531,1737510636353,-507.51081987,0.0002185,2]
[349926532,1737510636363,-264.23153822,0.0002185,2]
[349926533,1737510636374,-500.0,0.0002185,2]
[349926534,1737510636383,-508.15789852,0.0002185,2]
[349926535,1737510636392,-510.54122944,0.0002185,2]
[349926536,1737510636403,-500.0,0.0002185,2]
[349926537,1737510636414,-500.0,0.0002185,2]
[349926538,1737510636424,-502.72910564,0.0002185,2]
[349926539,1737510636434,-505.63659844,0.0002185,2]
[349926540,1737510636443,-1173.62,0.0002185,2]
[349926541,1737510636452,-500.0,0.0002185,2]
[349926542,1737510636462,-500.0,0.0002185,2]
[349926543,1737510636471,-500.0,0.0002185,2]
[349926544,1737510636481,-502.34678922,0.0002185,2]
[349926545,1737510636490,-504.26904045,0.0002185,2]
[349926546,1737510636500,-500.0,0.0002185,2]
[349926547,1737510636509,-506.74649929,0.0002185,2]
[349926548,1737510636519,-508.20241466,0.0002185,2]
[349926549,1737510636528,-500.0,0.0002185,2]
[349926550,1737510636537,-506.57845743,0.0002185,2]
[349926551,1737510636547,-502.99579271,0.0002185,2]
[349926552,1737510636556,-500.0,0.00021851,2]
[349926553,1737510636566,-763.79,0.00021851,2]
[349926554,1737510636575,-533.29574646,0.00021851,2]
[349926555,1737510636585,-584.2,0.00021851,2]
[349926556,1737510636594,-500.0,0.00021851,2]
[349926557,1737510636603,-500.0,0.00021851,2]
[349926558,1737510636613,-761.15,0.00021851,2]
[349926559,1737510636622,-224.90820916,0.00021851,2]
[349926560,1737510637481,-172.7867141,0.00021497,2]
[349926561,1737510637491,-500.0,0.00021751,2]
[349926562,1737510637500,-275.09179084,0.00021851,2]
[349926563,1737510637510,-504.30390878,0.00021851,2]
[349926564,1737510637520,-502.60881132,0.00021851,2]
[349926565,1737510637531,-500.0,0.00021851,2]
[349926566,1737510637541,-501.43574264,0.00021851,2]
[349926567,1737510637551,-277.08014083,0.00021851,2]
[349926568,1737510637560,-500.0,0.00021851,2]
[349926569,1737510637569,-502.50825281,0.00021851,2]
[349926570,1737510637579,-500.0,0.00021851,2]
[349926571,1737510637588,-500.0,0.00021851,2]
[349926572,1737510637598,-500.0,0.00021851,2]
[349926573,1737510637608,-500.0,0.00021851,2]
[349926574,1737510637617,-500.0,0.00021851,2]
[349926575,1737510637627,-1554.15,0.00021851,2]
[349926576,1737510637636,-500.0,0.00021851,2]
[349926577,1737510637646,-500.0,0.00021851,2]
[349926578,1737510637656,-519.93397062,0.00021851,2]
[349926579,1737510637667,-500.0,0.00021851,2]
[349926580,1737510637676,-500.0,0.00021851,2]
[349926581,1737510637685,-500.0,0.00021851,2]
[349926582,1737510637695,-505.06683885,0.00021851,2]
[349926583,1737510637704,-500.0,0.00021851,2]
[349926584,1737510637714,-500.0,0.00021851,2]
[349926585,1737510637725,-516.57389079,0.00021851,2]
[349926586,1737510637736,-500.0,0.00021851,2]
[349926587,1737510637747,-500.0,0.00021851,2]
[349926588,1737510637756,-500.0,0.00021851,2]
[349926589,1737510637766,-500.0,0.00021851,2]
[349926590,1737510637780,-508.5862771,0.00021851,2]
[349926591,1737510637790,-512.36048631,0.00021851,2]
[349926592,1737510637800,-500.0,0.00021851,2]
[349926593,1737510637810,-500.0,0.00021851,2]
[349926594,1737510637822,-609.1900757,0.00021851,2]
[349926595,1737510637831,-500.0,0.00021851,2]
[349926596,1737510637841,-525.97097363,0.00021851,2]
[349926597,1737510637854,-500.0,0.00021851,2]
[349926598,1737510637864,-510.91510177,0.00021851,2]
[349926599,1737510637874,-500.0,0.00021851,2]
[349926600,1737510637884,-500.0,0.00021851,2]
[349926601,1737510637894,-527.57870704,0.00021851,2]
[349926602,1737510637903,-500.0,0.00021851,2]
[349926603,1737510637912,-500.0,0.00021851,2]
[349926604,1737510637922,-628.88470164,0.00021851,2]
[349926605,1737510637931,-539.26747721,0.00021851,2]
[349926606,1737510637941,-510.07376301,0.00021851,2]
[349926607,1737510637951,-516.65599131,0.00021851,2]
[349926608,1737510637961,-500.0,0.00021851,2]
[349926609,1737510637971,-501.1205468,0.00021851,2]
[349926610,1737510637981,-507.65475888,0.00021851,2]
[349926611,1737510637991,-500.0,0.00021851,2]
[349926612,1737510638000,-517.81429197,0.00021851,2]
[349926613,1737510638011,-505.70988273,0.00021851,2]
[349926614,1737510638023,-522.12932129,0.00021851,2]
[349926615,1737510638032,-511.84245315,0.00021851,2]
[349926616,1737510638043,-500.0,0.00021851,2]
[349926617,1737510638053,-502.61034102,0.00021851,2]
[349926618,1737510638065,-522.33122785,0.00021851,2]
[349926619,1737510638074,-500.0,0.00021851,2]
[349926620,1737510638084,-521.1482162,0.00021851,2]
[349926621,1737510638094,-525.69407605,0.00021851,2]
[349926622,1737510638105,-500.0,0.00021851,2]
[349926623,1737510638115,-500.0,0.00021851,2]
[349926624,1737510638125,-500.0,0.00021851,2]
[349926625,1737510638135,-522.1296284,0.00021851,2]
[349926626,1737510638145,-500.0,0.00021851,2]
[349926627,1737510638155,-516.48152416,0.00021851,2]
[349926628,1737510638165,-500.0,0.00021851,2]
[349926629,1737510638174,-500.0,0.00021851,2]
[349926630,1737510638184,-619.48641429,0.00021851,2]
[349926631,1737510638194,-500.0,0.00021851,2]
[349926632,1737510638204,-1057.07,0.00021851,2]
[349926633,1737510638215,-992.11,0.00021851,2]
[349926634,1737510638225,-737.06,0.00021851,2]
[349926635,1737510638234,-565.73,0.00021851,2]
[349926636,1737510638244,-1059.98,0.00021851,2]
[349926637,1737510638253,-500.0,0.00021851,2]
[349926638,1737510638263,-500.0,0.00021851,2]
[349926639,1737510638273,-1078.77,0.00021851,2]
[349926640,1737510638282,-2243.62,0.00021851,2]
[349926641,1737510638292,-1394.28,0.00021851,2]
[349926642,1737510638302,-500.0,0.00021851,2]
[349926643,1737510638311,-535.78,0.00021851,2]
[349926644,1737510638320,-585.02,0.00021851,2]
[349926645,1737510638330,-500.0,0.00021851,2]
[349926646,1737510638339,-510.47380386,0.00021851,2]
[349926647,1737510638349,-1766.76,0.00021851,2]
[349926648,1737510638358,-1350.98,0.00021851,2]
[349926649,1737510638368,-4129.78,0.00021851,2]
[349926650,1737510638377,-760.69,0.00021851,2]
[349926651,1737510638387,-500.0,0.00021851,2]
[349926652,1737510638396,-3691.58,0.00021851,2]
[349926653,1737510638405,-770.72,0.00021851,2]
[349926654,1737510638415,-536.34,0.00021851,2]
[349926655,1737510638424,-500.0,0.00021851,2]
[349926656,1737510638434,-701.1,0.00021851,2]
[349926657,1737510638444,-500.0,0.00021851,2]
[349926658,1737510638453,-500.0,0.00021851,2]
[349926659,1737510638463,-500.0,0.00021851,2]
[349926660,1737510638473,-892.84,0.00021851,2]
[349926661,1737510638483,-500.0,0.00021851,2]
[349926662,1737510638492,-530.04439567,0.00021851,2]
[349926663,1737510638502,-1250.15,0.00021851,2]
[349926664,1737510638511,-500.0,0.00021851,2]
[349926665,1737510638521,-500.0,0.00021851,2]
[349926666,1737510638531,-622.82,0.00021851,2]
[349926667,1737510638541,-500.0,0.00021851,2]
[349926668,1737510638551,-500.0,0.00021851,2]
[349926669,1737510638561,-500.0,0.00021851,2]
[349926670,1737510638571,-1197.45,0.00021851,2]
[349926671,1737510638583,-980.48,0.00021851,2]
[349926672,1737510638594,-742.16,0.00021851,2]
[349926673,1737510638604,-516.01603701,0.00021851,2]
[349926674,1737510638615,-509.68169146,0.00021851,2]